bitfinex/quotes_BTCUSD_20230103
["timestamp","ask_amount","ask_price","bid_price","bid_amount"]
[1672768494987,0.94155631,16638.0,16637.0,2.7472479]
[1672768495244,2.45703835,16638.0,16637.0,1.23122567]
[1672768495509,2.88991421,16638.0,16637.0,1.05032567]
[1672768496013,2.88983982,16638.0,16637.0,1.05032567]
[1672768496757,2.34988487,16638.0,16636.0,1.25910547]
[1672768497002,2.06637132,16637.0,16636.0,0.95558995]
[1672768497259,2.41452073,16637.0,16636.0,1.60917085]
[1672768497520,2.41452073,16637.0,16636.0,0.90917085]
[1672768498051,2.43413563,16637.0,16636.0,0.90917085]
[1672768498314,2.08157863,16637.0,16636.0,0.90917085]
[1672768498832,2.10957863,16637.0,16636.0,0.90917085]
[1672768499108,2.69835763,16637.0,16636.0,0.91767085]
[1672768499340,2.78235763,16637.0,16636.0,0.91767085]
[1672768499590,2.15800456,16637.0,16636.0,0.91767085]
[1672768499873,2.28300456,16637.0,16636.0,0.91767085]
[1672768500141,3.49693724,16637.0,16636.0,0.00917085]
[1672768500425,4.27937096,16637.0,16636.0,0.00917085]
[1672768501167,3.67830196,16637.0,16636.0,0.00917085]
[1672768501444,4.78857526,16637.0,16636.0,0.00917085]
[1672768501698,4.1809496,16637.0,16636.0,0.00917085]
[1672768501951,4.78857526,16637.0,16636.0,0.00917085]
[1672768502200,4.28592762,16637.0,16636.0,0.00917085]
[1672768502448,4.28592762,16637.0,16634.0,1.64013713]
[1672768502449,0.00121877,16635.0,16634.0,1.64013713]
[1672768502699,0.78974643,16635.0,16634.0,1.21499038]
[1672768502949,1.17468002,16635.0,16634.0,1.51557038]
[1672768503203,0.73870936,16635.0,16634.0,1.51557038]
[1672768503454,0.73870936,16635.0,16634.0,1.94945772]
[1672768503713,1.18842683,16635.0,16634.0,1.94941782]
[1672768503968,1.18842683,16635.0,16634.0,1.51557038]
[1672768504219,1.56204957,16635.0,16634.0,1.53257038]
[1672768504991,1.56204957,16635.0,16634.0,2.13374838]
[1672768505523,0.82455898,16635.0,16634.0,2.43374838]
[1672768505762,0.82455898,16635.0,16634.0,1.96661234]
[1672768506030,0.64455283,16635.0,16634.0,3.56779034]
[1672768506277,0.64455283,16635.0,16634.0,2.96661234]
[1672768506499,0.64455283,16635.0,16634.0,2.66661234]
[1672768507028,1.44064201,16635.0,16634.0,2.66688239]
[1672768507298,1.44064537,16635.0,16634.0,2.66653479]
[1672768507553,1.44064537,16635.0,16634.0,2.23257038]
[1672768507817,1.44064537,16635.0,16634.0,1.53257038]
[1672768508342,1.5300799,16635.0,16634.0,1.23199038]
[1672768508602,1.44040577,16635.0,16634.0,1.23199038]
[1672768508851,1.44040577,16635.0,16634.0,1.53257038]
[1672768509371,1.87637643,16635.0,16634.0,1.53257038]
[1672768509640,1.87637643,16635.0,16634.0,0.93525469]
[1672768509958,2.47751843,16635.0,16634.0,0.93525469]
[1672768510166,3.07866043,16635.0,16634.0,0.93525469]
[1672768510421,2.71903769,16635.0,16634.0,0.93525469]
[1672768510673,3.02203063,16635.0,16634.0,0.93525469]
[1672768511177,3.63880963,16635.0,16634.0,0.93525469]
[1672768512459,3.63880963,16635.0,16634.0,0.92675469]
[1672768513485,3.18909216,16635.0,16634.0,0.92675469]
[1672768514006,3.79023416,16635.0,16634.0,0.02675469]
[1672768514271,3.97113416,16635.0,16634.0,0.02675469]
[1672768514561,4.51080247,16635.0,16634.0,0.02675469]
[1672768515027,4.49680247,16635.0,16634.0,0.00975469]
[1672768515288,4.58580247,16635.0,16634.0,0.01175469]
[1672768515561,4.31590247,16635.0,16634.0,0.00975469]
[1672768515798,4.31590247,16635.0,16634.0,0.01175469]
[1672768515799,4.10190953,16635.0,16634.0,0.01175469]
[1672768516070,4.43012581,16635.0,16634.0,0.01175469]
[1672768516318,0.00155759,16633.0,16632.0,1.6430448]
[1672768516558,2.18459579,16633.0,16632.0,1.21037469]
[1672768516816,2.26800945,16633.0,16632.0,1.21037469]
[1672768517576,2.28300945,16633.0,16632.0,1.22137469]
[1672768518092,2.46239459,16633.0,16632.0,1.22137469]
[1672768518606,2.10350705,16633.0,16632.0,1.22137469]
[1672768519114,2.10350705,16633.0,16632.0,1.52918325]
[1672768519360,1.66753639,16633.0,16632.0,1.52918325]
[1672768519614,1.06632239,16633.0,16632.0,1.52918325]
[1672768519866,0.46510839,16633.0,16632.0,1.52918325]
[1672768520109,0.46510839,16633.0,16632.0,2.22918325]
[1672768521120,0.46510839,16633.0,16632.0,2.22915325]
[1672768521378,1.06632239,16633.0,16632.0,2.22915325]
[1672768521867,2.10350705,16633.0,16632.0,2.22915325]
[1672768525120,0.90107905,16633.0,16632.0,2.22915325]
[1672768525379,0.46510839,16633.0,16632.0,2.22915325]
[1672768526122,0.46510839,16633.0,16632.0,1.52915325]
[1672768526374,0.46510839,16633.0,16632.0,2.22915325]
[1672768527379,1.06632239,16633.0,16632.0,2.22915325]
[1672768528126,1.0658821,16633.0,16632.0,2.22915325]
[1672768528621,1.42476964,16633.0,16632.0,2.22915325]
[1672768528873,1.86075534,16633.0,16632.0,2.22915325]
[1672768529122,1.8465985,16633.0,16632.0,2.22915325]
[1672768529618,1.2453845,16633.0,16632.0,2.22915325]
[1672768529878,0.82357301,16633.0,16632.0,2.22915325]
[1672768530142,0.46468547,16633.0,16632.0,2.66171121]
[1672768530394,0.46468547,16633.0,16632.0,2.22915325]
[1672768530655,0.46468547,16633.0,16632.0,2.66194262]
[1672768532739,0.6441705,16633.0,16632.0,2.66194262]
[1672768533006,0.6441705,16633.0,16632.0,2.66202253]
[1672768533252,0.6441705,16633.0,16632.0,2.22915325]
[1672768533764,0.6441705,16633.0,16632.0,2.66198345]
[1672768534020,0.6441705,16633.0,16632.0,2.22915325]
[1672768534530,0.82361427,16633.0,16632.0,2.22915325]
[1672768534794,1.43534241,16633.0,16632.0,2.22915325]
[1672768535049,0.82361427,16633.0,16632.0,2.22915325]
[1672768535380,1.43531122,16633.0,16632.0,2.22915325]
[1672768536643,1.43591503,16633.0,16632.0,2.22915325]
[1672768537113,1.43591503,16633.0,16632.0,2.66194251]
[1672768537402,1.43591503,16633.0,16632.0,2.22915325]
[1672768538173,2.71482234,16633.0,16632.0,1.62075469]
[1672768538386,3.81683936,16633.0,16632.0,0.92075469]
[1672768538690,3.81683936,16633.0,16630.0,0.77097262]
[1672768538691,0.03501997,16631.0,16630.0,0.77097262]
[1672768538947,1.19660139,16631.0,16630.0,1.03637849]
[1672768539206,2.75455941,16631.0,16630.0,0.7]
[1672768539471,2.13778041,16631.0,16630.0,0.7]
[1672768540000,3.11403469,16631.0,16630.0,0.7]
[1672768540219,3.13003469,16631.0,16630.0,1.00263]
[1672768540540,2.77055941,16631.0,16630.0,1.00263]
[1672768541024,2.15378041,16631.0,16630.0,1.00263]
[1672768541548,2.75506641,16631.0,16630.0,1.00263]
[1672768541868,3.37184541,16631.0,16630.0,1.00263]
[1672768542301,3.37184541,16631.0,16630.0,0.30263]
[1672768542808,3.37184541,16631.0,16630.0,0.263937]
[1672768543544,2.77055941,16631.0,16630.0,0.263937]
[1672768544522,2.16927341,16631.0,16630.0,0.263937]
[1672768544782,2.77055941,16631.0,16630.0,0.263937]
[1672768545026,2.16927341,16631.0,16630.0,0.263937]
[1672768545245,2.77055941,16631.0,16630.0,0.263937]
[1672768546069,2.77055941,16631.0,16630.0,0.30064]
[1672768546333,2.16927341,16631.0,16630.0,0.30064]
[1672768547079,1.55249441,16631.0,16630.0,0.30064]
[1672768547320,2.15378041,16631.0,16630.0,0.30064]
[1672768548051,2.77055941,16631.0,16630.0,0.30064]
[1672768548801,2.15378041,16631.0,16630.0,0.30064]
[1672768549294,1.55249441,16631.0,16630.0,0.30064]
[1672768550068,1.47163948,16631.0,16630.0,0.30064]
[1672768550322,1.11217493,16631.0,16630.0,0.30064]
[1672768550607,1.11217493,16631.0,16630.0,0.30063]
[1672768551877,1.11217493,16631.0,16630.0,1.00063]
[1672768553867,1.11217493,16631.0,16630.0,0.7]
[1672768554111,1.11217493,16631.0,16630.0,1.00063]
[1672768558490,1.11217493,16631.0,16630.0,1.18153]
[1672768559475,1.55066431,16631.0,16630.0,1.18153]
[1672768559735,1.11217493,16631.0,16630.0,1.18153]
[1672768559955,1.55066431,16631.0,16630.0,1.18153]
[1672768560219,1.11217493,16631.0,16630.0,1.18153]
[1672768561797,1.11217493,16631.0,16630.0,1.17653]
[1672768562056,1.49500654,16631.0,16630.0,1.17653]
[1672768562312,2.09629254,16631.0,16630.0,0.48153]
[1672768562556,2.71307154,16631.0,16630.0,0.48153]
[1672768564303,2.11178554,16631.0,16630.0,0.48153]
[1672768565555,3.31435754,16631.0,16630.0,0.48153]
[1672768565800,2.71307154,16631.0,16630.0,0.48153]
[1672768566288,2.71307154,16631.0,16630.0,0.48154]
[1672768567811,2.11178554,16631.0,16630.0,0.48154]
[1672768568305,2.12286811,16631.0,16630.0,0.48154]
[1672768568801,1.50608911,16631.0,16630.0,0.48154]
[1672768569051,2.71307154,16631.0,16630.0,0.1809]
[1672768569316,2.71307154,16631.0,16630.0,0.48155]
[1672768569576,2.09629254,16631.0,16630.0,0.48155]
[1672768569816,2.69757854,16631.0,16630.0,0.1809]
[1672768570055,3.85371125,16631.0,16630.0,0.1809]
[1672768570331,2.65113925,16631.0,16630.0,0.3604]
[1672768570569,3.41522187,16631.0,16630.0,0.3604]
[1672768571070,3.85371125,16631.0,16630.0,0.3604]
[1672768571818,4.45499725,16631.0,16629.0,0.19346282]
[1672768572072,1.27999167,16630.0,16629.0,0.19346282]
[1672768572332,2.92112505,16630.0,16629.0,0.19346282]
[1672768573368,2.33580305,16630.0,16629.0,0.19346282]
[1672768573587,2.33580305,16630.0,16629.0,0.49413282]
[1672768574128,1.89731367,16630.0,16629.0,0.49413282]
[1672768574410,1.89731367,16630.0,16629.0,0.87259127]
[1672768574659,1.24447595,16630.0,16629.0,0.87259127]
[1672768575424,0.98025395,16630.0,16629.0,0.87259127]
[1672768575650,0.62769695,16630.0,16629.0,0.87259127]
[1672768575994,1.0772816,16630.0,16629.0,1.30899269]
[1672768576163,1.43697604,16630.0,16629.0,1.30899269]
[1672768576433,1.0772816,16630.0,16629.0,1.60899269]
[1672768576700,1.0772816,16630.0,16629.0,1.30899269]
[1672768577200,1.1084094,16630.0,16629.0,1.30899269]
[1672768577717,0.85651241,16630.0,16629.0,1.79839269]
[1672768577966,0.67679207,16630.0,16629.0,3.61788969]
[1672768578232,1.3544787,16630.0,16629.0,3.61788969]
[1672768578488,1.62446731,16630.0,16629.0,3.61788969]
[1672768578988,1.89445211,16630.0,16629.0,4.11788969]
[1672768579246,1.44486746,16630.0,16629.0,4.81788969]
[1672768579824,1.44486746,16630.0,16629.0,4.71667775]
[1672768580270,1.44486746,16630.0,16629.0,4.45959898]
[1672768580537,1.44486746,16630.0,16629.0,4.64049898]
[1672768581524,2.10650889,16630.0,16629.0,3.42236098]
[1672768581778,2.10650889,16630.0,16629.0,3.12169098]
[1672768582046,2.10650889,16630.0,16629.0,2.52033198]
[1672768582286,2.10650889,16630.0,16629.0,3.72304998]
[1672768582533,1.44486412,16630.0,16629.0,4.33982898]
[1672768583051,1.44486412,16630.0,16629.0,4.94118798]
[1672768583052,1.26505359,16630.0,16629.0,4.94118798]
[1672768583291,1.26505359,16630.0,16629.0,4.95916958]
[1672768584603,1.26505359,16630.0,16629.0,5.64222277]
[1672768584848,0.99507213,16630.0,16629.0,5.82262277]
[1672768586367,0.8150827,16630.0,16629.0,5.82262277]
[1672768592821,0.8150827,16630.0,16629.0,6.12323277]
[1672768593306,0.8150827,16630.0,16629.0,6.10525117]
[1672768593789,0.8150827,16630.0,16629.0,5.50389217]
[1672768594047,0.8150827,16630.0,16629.0,6.10525117]
[1672768594801,0.8150827,16630.0,16629.0,5.82219798]
[1672768595538,0.8150827,16630.0,16629.0,6.10170073]
[1672768596321,0.8150827,16630.0,16629.0,6.11968233]
[1672768601612,0.8150827,16630.0,16629.0,5.41968233]
[1672768602122,0.8150827,16630.0,16629.0,5.23878233]
[1672768602344,0.8150827,16630.0,16629.0,5.93878233]
[1672768603344,0.8150827,16630.0,16629.0,5.63817233]
[1672768603839,0.8150827,16630.0,16629.0,5.93878233]
[1672768612626,0.8150827,16630.0,16629.0,5.8003839]
[1672768612875,0.8150827,16630.0,16629.0,7.95064535]
[1672768613136,0.8150827,16630.0,16629.0,8.22119004]
[1672768613392,0.81499326,16630.0,16629.0,8.40155317]
[1672768614179,0.81499326,16630.0,16629.0,8.5819163]
[1672768615702,0.79939991,16630.0,16629.0,8.5819163]
[1672768615941,0.80139991,16630.0,16629.0,8.7069163]
[1672768616188,0.80139991,16630.0,16629.0,8.70656615]
[1672768617180,0.80139991,16630.0,16629.0,8.34619004]
[1672768617943,0.80139991,16630.0,16629.0,8.06350377]
[1672768618198,0.80139991,16630.0,16629.0,8.70642974]
[1672768620452,0.80139991,16630.0,16629.0,8.97658865]
[1672768620715,0.80139991,16630.0,16629.0,8.97658871]
[1672768620975,0.80139991,16630.0,16629.0,8.97658877]
[1672768621477,0.80139991,16630.0,16629.0,8.70642974]
[1672768622967,0.80139991,16630.0,16629.0,8.52571727]
[1672768623213,0.80139991,16630.0,16629.0,8.24305628]
[1672768623966,0.80139991,16630.0,16629.0,8.52572194]
[1672768624212,0.80139991,16630.0,16629.0,8.97662976]
[1672768624484,0.80139991,16630.0,16629.0,8.70643441]
[1672768625767,0.68159027,16630.0,16629.0,9.61206161]
[1672768626008,0.68159027,16630.0,16629.0,10.23500753]
[1672768626267,0.68119801,16630.0,16629.0,9.61206161]
[1672768627020,0.68119801,16630.0,16629.0,10.81223468]
[1672768627264,8.01e-06,16630.0,16629.0,11.41359368]
[1672768627517,0.03501997,16631.0,16630.0,0.94500132]
[1672768627769,0.00570826,16635.0,16630.0,8.48970539]
[1672768628018,0.00070826,16635.0,16634.0,1.441]
[1672768628268,0.00070826,16635.0,16634.0,4.17381681]
[1672768628551,0.00070826,16635.0,16634.0,4.39104727]
[1672768628799,0.00070826,16635.0,16634.0,5.09104727]
[1672768629050,0.00070826,16635.0,16634.0,5.09103727]
[1672768629551,0.00070826,16635.0,16634.0,4.75555124]
[1672768629799,0.00070826,16635.0,16634.0,5.05606124]
[1672768630055,0.02270826,16635.0,16634.0,5.30646631]
[1672768630314,0.02270826,16635.0,16634.0,6.39006631]
[1672768631310,0.02270826,16635.0,16634.0,6.39424346]
[1672768632120,0.02270826,16635.0,16634.0,5.31074346]
[1672768632387,0.02270826,16635.0,16634.0,5.62181443]
[1672768634937,0.02270826,16635.0,16634.0,5.31074346]
[1672768635448,0.02270826,16635.0,16634.0,5.65313926]
[1672768636216,0.02270826,16635.0,16634.0,5.31074346]
[1672768637523,0.02270826,16635.0,16634.0,5.06733839]
[1672768639318,0.02270826,16635.0,16634.0,5.45789674]
[1672768642628,0.02270826,16635.0,16634.0,5.06733839]
[1672768642896,0.02270826,16635.0,16634.0,5.35263724]
[1672768643413,0.02270826,16635.0,16634.0,5.05212724]
[1672768643671,0.02270826,16635.0,16634.0,5.35262724]
[1672768644183,0.02270826,16635.0,16634.0,5.38769724]
[1672768644760,0.02270826,16635.0,16634.0,5.10239839]
[1672768649332,0.02270826,16635.0,16634.0,5.70254843]
[1672768649589,0.02270826,16635.0,16634.0,5.66747843]
[1672768649844,0.02259974,16635.0,16634.0,5.66747843]
[1672768650099,0.02259974,16635.0,16634.0,5.84745193]
[1672768650875,0.02259974,16635.0,16634.0,7.20201218]
[1672768651120,0.02259974,16635.0,16634.0,7.56195918]
[1672768651677,0.02259974,16635.0,16634.0,7.20193667]
[1672768651923,0.00059974,16635.0,16634.0,7.19493667]
[1672768652259,0.00259974,16635.0,16634.0,7.50298568]
[1672768652414,0.00059974,16635.0,16634.0,7.82491943]
[1672768652667,0.00259974,16635.0,16634.0,7.95291943]
[1672768652919,0.00259974,16635.0,16634.0,7.95289473]
[1672768653193,0.00259974,16635.0,16634.0,8.22195918]
[1672768654976,0.00259974,16635.0,16634.0,7.86201218]
[1672768655227,0.03269832,16635.0,16634.0,7.86201218]
[1672768656776,0.03269832,16635.0,16634.0,9.12186688]
[1672768657791,0.03269832,16635.0,16634.0,8.76201218]
[1672768659649,0.03269832,16635.0,16634.0,9.12181349]
[1672768660153,0.03269832,16635.0,16634.0,8.76201218]
[1672768660420,2.671e-05,16636.0,16634.0,23.24524025]
[1672768660694,0.00676968,16638.0,16635.0,3.73740809]
[1672768660937,0.00676968,16638.0,16637.0,2.97239842]
[1672768661200,0.00676968,16638.0,16637.0,7.36953739]
[1672768661469,0.00676968,16638.0,16637.0,7.83730357]
[1672768661721,0.00676968,16638.0,16637.0,8.51941899]
[1672768661972,0.00676968,16638.0,16637.0,9.21941899]
[1672768662543,0.00676968,16638.0,16637.0,9.35941899]
[1672768662988,0.00676968,16638.0,16637.0,8.09412117]
[1672768663475,0.00676968,16638.0,16637.0,8.69519017]
[1672768663969,0.00676968,16638.0,16637.0,8.87518799]
[1672768664454,0.00676968,16638.0,16637.0,9.05503799]
[1672768664924,0.00676968,16638.0,16637.0,8.69521032]
[1672768665716,0.00676968,16638.0,16637.0,8.69522731]
[1672768666667,0.00676968,16638.0,16637.0,8.45496656]
[1672768667418,0.00676968,16638.0,16637.0,8.45498656]
[1672768667960,0.00676968,16638.0,16637.0,8.6734423]
[1672768669687,0.00676968,16638.0,16637.0,8.94331305]
[1672768669951,0.00676968,16638.0,16637.0,8.6734423]
[1672768672668,0.00676968,16638.0,16637.0,8.94331305]
[1672768673679,0.00676968,16638.0,16637.0,9.30314072]
[1672768673929,0.00676968,16638.0,16637.0,8.94331305]
[1672768674190,0.00676968,16638.0,16637.0,8.94330305]
[1672768674442,0.00676968,16638.0,16637.0,9.12326373]
[1672768674947,0.00676968,16638.0,16637.0,9.30311316]
[1672768675247,0.00676968,16638.0,16637.0,9.12326373]
[1672768675498,0.00676968,16638.0,16637.0,9.30311311]
[1672768675760,0.00676968,16638.0,16637.0,9.12326373]
[1672768676008,0.00676968,16638.0,16637.0,9.30312587]
[1672768676252,0.00676968,16638.0,16637.0,8.9432982]
[1672768676507,0.00652852,16638.0,16637.0,8.9432982]
[1672768677279,0.00652852,16638.0,16637.0,9.30312587]
[1672768677523,0.00652852,16638.0,16637.0,9.12326373]
[1672768678780,0.00652852,16638.0,16637.0,8.94236373]
[1672768679820,8.52e-06,16638.0,16637.0,9.81480991]
[1672768680083,8.52e-06,16638.0,16637.0,10.20976531]
[1672768680591,8.52e-06,16638.0,16637.0,10.57293873]
[1672768680836,8.52e-06,16638.0,16637.0,10.57193873]
[1672768681083,8.52e-06,16638.0,16637.0,10.43293873]
[1672768681336,8.52e-06,16638.0,16637.0,10.57193873]
[1672768681602,8.52e-06,16638.0,16637.0,10.20876531]
[1672768682133,8.52e-06,16638.0,16637.0,10.59316218]
[1672768683441,0.24006854,16638.0,16637.0,13.85131647]
[1672768683678,8.52e-06,16638.0,16637.0,13.04746073]
[1672768684183,8.52e-06,16638.0,16637.0,12.77764069]
[1672768684944,8.52e-06,16638.0,16637.0,12.59784775]
[1672768685696,8.52e-06,16638.0,16637.0,12.44574069]
[1672768685944,8.52e-06,16638.0,16637.0,12.26602317]
[1672768686187,0.02750467,16638.0,16637.0,12.26602317]
[1672768687194,0.02750467,16638.0,16637.0,12.44599738]
[1672768687465,0.02750467,16638.0,16637.0,12.08623898]
[1672768687728,0.02750467,16638.0,16637.0,12.26602317]
[1672768687981,0.02750467,16638.0,16637.0,11.70190733]
[1672768688229,0.02750467,16638.0,16637.0,11.68392573]
[1672768688496,0.02750467,16638.0,16637.0,12.07644416]
[1672768688745,0.02750467,16638.0,16637.0,11.8636447]
[1672768688990,0.02750467,16638.0,16637.0,12.04368338]
[1672768689485,0.02750467,16638.0,16637.0,11.8636447]
[1672768689722,0.02750467,16638.0,16637.0,12.31332055]
[1672768690503,0.02750467,16638.0,16637.0,11.8636447]
[1672768690751,0.02750467,16638.0,16637.0,12.04336222]
[1672768691530,0.02750467,16638.0,16637.0,12.18412219]
[1672768691785,0.02750467,16638.0,16637.0,12.18420515]
[1672768692788,0.02750467,16638.0,16637.0,12.0046238]
[1672768693042,0.02750467,16638.0,16637.0,12.18420515]
[1672768695093,0.02750467,16638.0,16637.0,11.86394893]
[1672768695602,0.02750467,16638.0,16637.0,12.04336222]
[1672768696595,0.02750467,16638.0,16637.0,12.32255533]
[1672768696811,0.02750467,16638.0,16637.0,12.29294533]
[1672768697814,0.02750467,16638.0,16637.0,12.01375222]
[1672768698339,0.02750467,16638.0,16637.0,12.36053146]
[1672768699326,0.02750467,16638.0,16637.0,12.01375222]
[1672768699582,0.02750467,16638.0,16637.0,11.65399382]
[1672768699840,0.02750467,16638.0,16637.0,12.01479165]
[1672768700094,0.02750467,16638.0,16637.0,12.37548929]
[1672768700353,0.02750467,16638.0,16637.0,12.23140301]
[1672768700605,0.02750467,16638.0,16637.0,11.3240636]
[1672768702126,0.02750467,16638.0,16637.0,11.1850636]
[1672768702389,0.02750467,16638.0,16637.0,11.3250636]
[1672768702661,0.02750467,16638.0,16637.0,11.2900036]
[1672768703661,0.02750467,16638.0,16637.0,11.01947403]
[1672768704654,0.02750467,16638.0,16637.0,10.41932399]
[1672768704905,0.02750467,16638.0,16637.0,10.41623069]
[1672768705155,0.02750467,16638.0,16637.0,9.33791483]
[1672768705475,0.02750467,16638.0,16637.0,9.79976569]
[1672768705913,0.02750467,16638.0,16637.0,9.61940746]
[1672768706931,0.02750467,16638.0,16637.0,10.23618646]
[1672768709185,0.02750467,16638.0,16637.0,10.41658469]
[1672768709432,0.02750467,16638.0,16637.0,10.01658469]
[1672768709680,0.02750467,16638.0,16637.0,9.83622646]
[1672768709920,0.02750467,16638.0,16637.0,10.01658469]
[1672768710173,0.02750467,16638.0,16637.0,10.19748469]
[1672768713733,0.02750467,16638.0,16637.0,10.46801426]
[1672768713962,0.02750467,16638.0,16637.0,10.19748469]
[1672768714220,0.02750467,16638.0,16637.0,10.46801426]
[1672768714748,0.02750467,16638.0,16637.0,10.19748469]
[1672768715024,0.02750467,16638.0,16637.0,10.46801426]
[1672768716251,0.02750467,16638.0,16637.0,10.16756426]
[1672768717248,0.02750467,16638.0,16637.0,10.46800426]
[1672768718251,0.02750467,16638.0,16637.0,10.16756426]
[1672768718507,0.02750467,16638.0,16637.0,10.46800426]
[1672768719299,0.02750467,16638.0,16637.0,10.19747469]
[1672768719501,0.02750467,16638.0,16637.0,10.46800426]
[1672768721120,0.02750467,16638.0,16637.0,9.76800426]
[1672768722145,0.02750467,16638.0,16637.0,10.46800426]
[1672768725492,0.02750467,16638.0,16637.0,10.19747469]
[1672768725788,0.02750467,16638.0,16637.0,9.58069569]
[1672768726002,0.02750467,16638.0,16637.0,9.85122526]
[1672768727500,0.02750467,16638.0,16637.0,10.46800426]
[1672768728243,0.02750467,16638.0,16637.0,9.76800426]
[1672768728498,0.02750467,16638.0,16637.0,9.15122526]
[1672768728741,0.02721548,16638.0,16637.0,9.15122526]
[1672768729284,0.02721548,16638.0,16637.0,9.85122526]
[1672768730037,0.91186077,16640.0,16637.0,9.85122526]
[1672768730285,0.48290051,16640.0,16639.0,1.4]
[1672768730536,0.21291905,16640.0,16639.0,4.48111503]
[1672768731286,0.21291905,16640.0,16639.0,4.211491]
[1672768731548,0.48290051,16640.0,16639.0,4.211491]
[1672768731770,0.48390051,16640.0,16639.0,4.211491]
[1672768732038,0.79519219,16640.0,16639.0,4.211491]
[1672768732296,0.79519219,16640.0,16639.0,4.305491]
[1672768732549,0.84270047,16640.0,16639.0,4.305491]
[1672768733587,0.66271104,16640.0,16639.0,4.305491]
[1672768734100,0.84272496,16640.0,16639.0,4.305491]
[1672768734602,0.482925,16640.0,16639.0,4.605941]
[1672768735127,0.482925,16640.0,16639.0,3.905941]
[1672768735865,0.84272496,16640.0,16639.0,3.905941]
[1672768736117,0.482925,16640.0,16639.0,3.905941]
[1672768736368,0.482925,16640.0,16639.0,4.605941]
[1672768738617,0.482925,16640.0,16639.0,4.96277139]
[1672768739347,0.482925,16640.0,16639.0,4.66232139]
[1672768739593,0.482925,16640.0,16639.0,4.96277139]
[1672768740558,0.21294354,16640.0,16639.0,5.23687676]
[1672768741559,0.21294354,16640.0,16639.0,5.41723499]
[1672768741831,0.21294354,16640.0,16639.0,5.23687676]
[1672768747591,0.482925,16640.0,16639.0,4.96277139]
[1672768747838,0.21294354,16640.0,16639.0,4.96277139]
[1672768748335,0.21294354,16640.0,16639.0,5.23880176]
[1672768748594,0.03292962,16640.0,16639.0,6.30646856]
[1672768749114,0.03292962,16640.0,16639.0,6.03593899]
[1672768749367,0.03292962,16640.0,16639.0,5.41915999]
[1672768749618,0.03292962,16640.0,16639.0,6.03593899]
[1672768750137,0.03292962,16640.0,16639.0,4.63780476]
[1672768750389,0.21294354,16640.0,16639.0,4.63780476]
[1672768750644,0.21294354,16640.0,16639.0,5.23880176]
[1672768752428,0.21294354,16640.0,16639.0,5.41810176]
[1672768753188,0.21294354,16640.0,16639.0,4.81710476]
[1672768754673,0.21294354,16640.0,16639.0,4.54107439]
[1672768754948,0.21294354,16640.0,16639.0,5.14207139]
[1672768755199,0.482925,16640.0,16639.0,5.14207139]
[1672768755666,0.21294354,16640.0,16639.0,5.14207139]
[1672768755944,0.21294354,16640.0,16639.0,5.41528734]
[1672768756488,0.21294354,16640.0,16639.0,6.03206634]
[1672768756704,0.21294354,16640.0,16639.0,6.03205634]
[1672768757516,0.03292962,16640.0,16639.0,5.67522595]
[1672768757763,0.03292962,16640.0,16639.0,6.06434884]
[1672768758245,0.03292962,16640.0,16639.0,7.06889916]
[1672768759707,0.03284123,16640.0,16639.0,7.06889916]
[1672768761457,0.03284123,16640.0,16639.0,6.88854093]
[1672768761961,0.03284123,16640.0,16639.0,7.06889916]
[1672768769441,0.03284123,16640.0,16639.0,6.88854093]
[1672768769913,0.03284123,16640.0,16639.0,7.06889916]
[1672768770435,0.03284123,16640.0,16639.0,6.36889916]
[1672768771930,0.03284123,16640.0,16639.0,7.06889916]
[1672768772672,0.03284123,16640.0,16639.0,7.33942873]
[1672768773183,0.03284123,16640.0,16639.0,6.95030584]
[1672768773425,0.03284123,16640.0,16639.0,7.73318186]
[1672768774184,0.03284123,16640.0,16639.0,7.73316186]
[1672768775944,0.03284123,16640.0,16639.0,5.63310289]
[1672768776238,0.21285515,16640.0,16639.0,5.45274466]
[1672768777437,0.03284123,16640.0,16639.0,8.4041952]
[1672768777938,0.03284123,16640.0,16639.0,8.58334148]
[1672768779513,0.03284123,16640.0,16639.0,8.85371914]
[1672768779755,0.03284123,16640.0,16639.0,8.40404329]
[1672768780809,0.03284123,16640.0,16639.0,8.85371914]
[1672768781662,0.03284123,16640.0,16639.0,8.58334148]
[1672768782431,0.03284123,16640.0,16639.0,8.58329148]
[1672768787390,0.03284123,16640.0,16639.0,8.55315878]
[1672768787633,0.03284123,16640.0,16639.0,8.85353878]
[1672768787894,0.03284123,16640.0,16639.0,8.58330148]
[1672768788149,0.03276008,16640.0,16639.0,8.58330148]
[1672768788391,0.03276008,16640.0,16639.0,8.40386288]
[1672768788636,0.03276008,16640.0,16639.0,8.58330148]
[1672768790162,0.03276008,16640.0,16639.0,8.79281851]
[1672768791436,0.03276008,16640.0,16639.0,8.09281851]
[1672768792687,0.03276008,16640.0,16639.0,9.0630137]
[1672768792952,0.03276008,16640.0,16639.0,8.79281851]
[1672768794459,0.03276008,16640.0,16639.0,8.49243851]
[1672768794714,0.03276008,16640.0,16639.0,8.79280851]
[1672768796473,0.03276008,16640.0,16639.0,8.43211087]
[1672768802001,0.03276008,16640.0,16639.0,8.79237956]
[1672768803028,0.03276008,16640.0,16639.0,8.43211087]
[1672768804052,0.03276008,16640.0,16639.0,8.79239057]
[1672768805803,0.03276008,16640.0,16639.0,8.79238057]
[1672768807100,0.03276008,16640.0,16639.0,8.92537825]
[1672768807352,0.03276008,16640.0,16639.0,8.74593925]
[1672768807608,0.03276008,16640.0,16639.0,8.92612313]
[1672768807828,0.03276008,16640.0,16639.0,8.74593925]
[1672768809754,0.03276008,16640.0,16639.0,8.43204157]
[1672768810283,0.03276008,16640.0,16639.0,8.61148057]
[1672768811253,0.02776008,16640.0,16639.0,8.61148057]
[1672768814064,0.02776008,16640.0,16639.0,8.25120087]
[1672768814821,0.02776008,16640.0,16639.0,7.80152502]
[1672768815325,0.02776008,16640.0,16639.0,7.98242502]
[1672768816354,0.02776008,16640.0,16639.0,8.00040662]
[1672768817153,0.02776008,16640.0,16639.0,8.67198091]
[1672768817402,0.02776008,16640.0,16639.0,8.67203364]
[1672768818173,0.02776008,16640.0,16639.0,9.21152178]
[1672768818421,0.02776008,16640.0,16639.0,9.21153178]
[1672768819425,0.02776008,16640.0,16639.0,8.67204126]
[1672768819672,0.02776008,16640.0,16639.0,8.00041662]
[1672768820193,0.02776008,16640.0,16639.0,7.79129959]
[1672768820695,0.02776008,16640.0,16639.0,7.09129959]
[1672768820957,0.02776008,16640.0,16639.0,6.47452059]
[1672768821447,0.02776008,16640.0,16639.0,7.09129959]
[1672768821693,0.02776008,16640.0,16639.0,7.79129959]
[1672768822166,0.02776008,16640.0,16639.0,7.49092959]
[1672768822460,0.02776008,16640.0,16639.0,7.79128959]
[1672768824010,0.02776008,16640.0,16639.0,7.82898959]
[1672768827563,0.02776008,16640.0,16639.0,7.12898959]
[1672768828573,0.02776008,16640.0,16639.0,7.82898959]
[1672768830356,0.02776008,16640.0,16639.0,8.00868959]
[1672768830898,0.02776008,16640.0,16639.0,8.45947183]
[1672768831116,0.02776008,16640.0,16639.0,8.00868959]
[1672768832116,0.02767353,16640.0,16639.0,8.00868959]